Cogmind - Beta 14 @@@ ROGUE MODE // 2024.12.02 @ 03:06:21 Player: akira Result: Destroyed by Y-45 Defender with Beam Rifle Performance ------------- Evolutions (2) 1000 Regions Visited (6) 1200 Robots Destroyed (51) 255 Value Destroyed (1583) 1583 Prototype IDs (28) 560 Alien Tech Used (0) 0 Bonus (630) 630 TOTAL SCORE: 5228 Bonus ------- High Alert Combat Kills 130 Entered Garrisons 200 Aligned with FarCom 300 Cogmind --------- Core Integrity 0/550 Matter 223/300 Energy 79/100 System Corruption 0% Temperature Critical (590) Movement Core (400) Ox7 Location -8/Garrison Parts ------- > --- POWER (1) -------- (None) > --- PROPULSION (3) --- (None) > --- UTILITY (5) ------ Large Storage Unit Improved Terrain Scan Processor Hacking Suite > --- WEAPON (2) ------- Gauss Rifle > --- INVENTORY (15) --- Light Nuclear Core Light Treads Improved Terrain Scanner Modified TNC Kinecellerator Hacking Suite Hacking Suite Decoy Drone Bay (16/16) Assault Cannon Heavy Rocket Launcher Peak State ------------ > --- POWER ------------ Light Nuclear Core > --- PROPULSION ------- Light Treads Light Treads Advanced Treads > --- UTILITY ---------- Large Storage Unit Improved Terrain Scan Processor Heavy Armor Plating Hacking Suite > --- WEAPON ----------- Gauss Rifle Gauss Rifle > --- INVENTORY -------- Improved Ion Engine Light Nuclear Core Light Treads Improved Terrain Scanner Modified TNC Kinecellerator Hacking Suite Hacking Suite Decoy Drone Bay Pulse Rifle Heavy Assault Rifle Gauss Rifle Assault Cannon Heavy Rocket Launcher [Rating: 34] Favorites ----------- Power Ion Engine Engine Ion Engine Power Core Light Nuclear Core Propulsion Light Treads Treads Light Treads Leg Aluminum Leg Utility Hacking Suite Device Kinecellerator Storage Large Storage Unit Processor Melee Analysis Suite Hackware Hacking Suite Protection Core Shielding Weapon Mining Claw Energy Gun Small Laser Ballistic Gun Gauss Rifle Ballistic Cannon Assault Cannon Launcher Heavy Rocket Launcher Special Weapon Mining Laser Slashing Weapon Mining Claw Build | -11 -10 -10 -10 -9 -8 -8 ------- Run | Yrd Mat Min Exi Min Mat Gar Slots Evolved 4 | . . . . . 4 . Power . | . . . . . . . Propulsion 1 | . . . . . 1 . Utility 3 | . . . . . 3 . Weapon . | . . . . . . . Parts Attached 63 | 7 11 3 . . 12 30 Power 6 | 1 2 . . . . 3 Engine 3 | 1 1 . . . . 1 Core 3 | . 1 . . . . 2 Reactor . | . . . . . . . Propulsion 20 | 2 3 3 . . 3 9 Treads 13 | . 3 1 . . 3 6 Leg 7 | 2 . 2 . . . 3 Wheel . | . . . . . . . Hover . | . . . . . . . Flight . | . . . . . . . Utility 15 | 1 2 . . . 7 5 Device 5 | . . . . . 4 1 Storage 2 | 1 1 . . . . . Processor 3 | . . . . . 3 . Hackware 1 | . 1 . . . . . Protection 4 | . . . . . . 4 Artifact . | . . . . . . . Weapon 22 | 3 4 . . . 2 13 Energy Gun 7 | 3 1 . . . 1 2 Energy Cannon . | . . . . . . . Ballistic Gun 7 | . . . . . . 7 Ballistic Cannon 2 | . . . . . . 2 Launcher 2 | . . . . . . 2 Special Weapon 1 | . 1 . . . . . Impact Weapon . | . . . . . . . Slashing Weapon 3 | . 2 . . . 1 . Piercing Weapon . | . . . . . . . Special Melee Weapon . | . . . . . . . Unidentified Prototypes 2 | . . . . . 2 . Parts Lost 17 | . . 2 . . . 15 Power 3 | . . 1 . . . 2 Propulsion 8 | . . 1 . . . 7 Utility 3 | . . . . . . 3 Weapon 3 | . . . . . . 3 Highest Loss Streak 9 | . . 2 . . . 9 To Critical Strikes . | . . . . . . . Average Slot Usage (%) 86 | . 99 87 71 71 76 92 Engine 3 | . 8 . . . . 4 Core 2 | . 5 7 . . . 1 Treads 18 | . 17 22 14 14 18 22 Leg 3 | . 10 . . . . 1 Device 1 | . . . . . 6 . Storage 11 | . 14 14 14 14 9 9 Processor 7 | . . . . . 15 16 Hackware 11 | . 13 14 14 14 9 9 Protection 2 | . . . . . . 8 Energy Gun 4 | . 15 . . . . . Ballistic Gun 4 | . . . . . . 15 Slashing Weapon 13 | . 11 28 28 28 17 1 Peak Build Rating 34 | 7 12 12 9 10 29 34 Average Rating 17 | 4 10 10 8 9 22 29 On Entrance 10 | . 7 12 8 9 10 26 Naked Turns . | . . . . . . . Heaviest Build 48 | 13 29 29 24 24 39 48 Greatest Support 62 | 20 40 40 20 20 62 62 Greatest Overweight (x) 2 | . . 1 1 1 1 2 Average Overweight (x) . | . . . 1 1 . . Largest Inventory Capacity 15 | 8 15 15 15 15 15 15 Average Capacity 13 | 7 8 15 15 15 15 15 Most Carried 15 | 8 8 8 9 11 15 15 Average Carried 11 | 5 7 7 8 10 14 14 Final Capacity 15 | 8 15 15 15 15 15 15 Final Carried 15 | 8 8 8 9 11 15 11 Class Distribution -------------------- 62% | Mutant 19% | Scavenger-Mutant 17% | Gladiator Dominant Class ---------------- Mutant | -10/Materials Mutant | -10/Mines Mutant | -10/Exiles Mutant | -9/Mines Gladiator | -8/Materials Scavenger-Mutant | -8/Garrison Resources | -11 -10 -10 -10 -9 -8 -8 ----------- Run | Yrd Mat Min Exi Min Mat Gar Matter Collected 1291 | 270 100 40 . . 50 831 Remotely . | . . . . . . . Salvage Created 1697 | 99 493 96 . 34 110 865 Parts 104 | 6 31 4 . 3 9 51 Haulers Intercepted . | . . . . . . . Recyclers Shooed . | . . . . . . . Parts Field Recycled . | . . . . . . . Retrieved Matter . | . . . . . . . Parts Self-Destructed . | . . . . . . . Prevented . | . . . . . . . Kills | -11 -10 -10 -10 -9 -8 -8 ------- Run | Yrd Mat Min Exi Min Mat Gar Combat Hostiles Destroyed 42 | . 12 2 . . 2 26 Melee 8 | . 4 2 . . 2 . Guns 30 | . 8 . . . . 22 AOE 4 | . . . . . . 4 Classes Destroyed 10 | 2 4 . . 1 1 2 Worker 2 | . . . . 2 . . Tunneler 2 | 2 . . . . . . Recycler 1 | 1 . . . . . . Operator 3 | . 3 . . . . . Watcher 1 | . 1 . . . . . Swarmer 9 | . 3 . . . . 6 Cutter 3 | . . . . . . 3 Grunt 20 | . 9 2 . . . 9 Sentry 9 | . . . . . 2 7 Hunter 1 | . . . . . . 1 Best Kill Streak 6 | 2 2 1 . 2 1 6 Combat Bots Only 6 | . 2 1 . . 1 6 Max Kills in Single Turn 2 | 1 2 1 . 1 1 2 Gunslinging 1 | . 1 . . . . 1 Exploded 2 | . . . . . . 2 Melee 1 | . 1 1 . . 1 . Uniques/NPCs Destroyed . | . . . . . . . Combat | -11 -10 -10 -10 -9 -8 -8 -------- Run | Yrd Mat Min Exi Min Mat Gar Hostile Shots Fired 343 | . 64 11 . . 8 260 Missed 90 | . 16 2 . . . 72 Damage Taken 3908 | . 559 124 . . 124 3101 Core 621 | . 70 . . . 46 505 Absorbed by Shields . | . . . . . . . Redirected to Shielding 52 | . . . . . . 52 Core Remaining (%) 86 | 100 . . . 72 . . Volleys Fired 118 | 7 33 . . . . 78 Largest 2 | 2 2 . . . . 2 Hottest 100 | 90 100 . . . . 91 Shots Fired 221 | 14 65 . . . . 142 Gun 207 | 14 64 . . . . 129 Cannon 7 | . . . . . . 7 Launcher 6 | . . . . . . 6 Special 1 | . 1 . . . . . Kinetic 129 | . . . . . . 129 Thermal 86 | 14 65 . . . . 7 Explosive 6 | . . . . . . 6 Electromagnetic . | . . . . . . . Robot Hit Streak 8 | 4 8 . . . . 8 Robot Miss Streak 5 | 5 2 . . . . 4 Penetration Max 1 | . . . . . . 1 Secondary Targets 9 | . 3 . . . . 6 Max Gunslinging Chain 1 | . 1 . . . . 1 Shots Hit Robots 145 | 6 58 5 . 3 7 66 Core Hits 78 | 4 25 3 . 1 2 43 Critical Kills . | . . . . . . . Critical Parts Destroyed . | . . . . . . . Critical Strikes 3 | . 3 . . . . . Burn 3 | . 3 . . . . . Melee Attacks 38 | . 18 7 . 4 9 . Impact . | . . . . . . . Slashing 38 | . 18 7 . 4 9 . Piercing . | . . . . . . . Sneak Attacks 5 | . . . . 3 2 . Combat Hostiles . | . . . . . . . Follow-up Attacks 6 | . 3 . . 1 2 . Damage Inflicted 3559 | 72 817 119 . 146 225 2180 Guns 2100 | 72 554 . . . . 1474 Cannons 23 | . . . . . . 23 Explosions 683 | . . . . . . 683 Melee 753 | . 263 119 . 146 225 . Ramming . | . . . . . . . Kinetic 1376 | . . . . . . 1376 Thermal 747 | 72 554 . . . . 121 Explosive 683 | . . . . . . 683 Electromagnetic . | . . . . . . . Impact . | . . . . . . . Slashing 753 | . 263 119 . 146 225 . Piercing . | . . . . . . . Highest Corruption . | . . . . . . . Average Corruption . | . . . . . . . Corruption Purged . | . . . . . . . Corruption Blocked . | . . . . . . . Overload Shots . | . . . . . . . Overflow Damage 37 | . 19 . . 18 . . Projectiles . | . . . . . . . Explosions . | . . . . . . . Melee 37 | . 19 . . 18 . . Knockbacks 1 | . . . . . . 1 Impact . | . . . . . . . Kinetic 1 | . . . . . . 1 Secondary . | . . . . . . . Self-Inflicted Damage 40 | . . . . . . 40 Shots 1 | . . . . . . 1 Rammed . | . . . . . . . Targets Rammed . | . . . . . . . Kicked . | . . . . . . . Crushed . | . . . . . . . Highest Temperature 580 | 90 309 . . . . 580 Average Temperature 93 | 35 107 . . . . 87 Received Heat Transfer 1736 | . 273 69 . . 36 1358 Effects 5 | . 1 . . . . 4 Energy Bleed 1 | . 1 . . . . . Interference 1 | . . . . . . 1 Matter Decay 1 | . . . . . . 1 Damage (minor) 1 | . . . . . . 1 Damage (core) 1 | . . . . . . 1 Siege Activations . | . . . . . . . Robots Corrupted . | . . . . . . . Combat Hostiles . | . . . . . . . Parts Fried . | . . . . . . . Impact Corruptions . | . . . . . . . Robots Melted . | . . . . . . . Combat Hostiles . | . . . . . . . Parts Melted 6 | . 6 . . . . . Heat Transferred 2178 | 198 1721 . . . . 259 Parts Sabotaged . | . . . . . . . Parts Stolen . | . . . . . . . Parts Stripped . | . . . . . . . Power Chain Reactions . | . . . . . . . Alert | -11 -10 -10 -10 -9 -8 -8 ------- Run | Yrd Mat Min Exi Min Mat Gar Peak Influence 777 | 15 187 61 . 10 46 777 Initial 31 | . 9 31 . . . 31 Average 162 | 5 65 45 . . 14 417 Maximum Alert Level 3 | . 1 . . . . 3 Low Security (%) 74 | 100 99 100 . 100 100 22 Level 1 3 | . . . . . . 11 Level 2 21 | . . . . . . 63 Level 3 . | . . . . . . 2 Level 4 . | . . . . . . . Level 5 . | . . . . . . . High Security . | . . . . . . . Max Security . | . . . . . . . Squads Dispatched 9 | . 4 . . . 5 . Investigation 3 | . 2 . . . 1 . Extermination . | . . . . . . . Reinforcement 3 | . 2 . . . 1 . Assault . | . . . . . . . Garrison 3 | . . . . . 3 . Intercept . | . . . . . . . Searches Triggered . | . . . . . . . Construction Impeded . | . . . . . . . Haulers Reinforced . | . . . . . . . Active Scanning Responses . | . . . . . . . Cargo Convoy Interrupts . | . . . . . . . Stealth | -11 -10 -10 -10 -9 -8 -8 --------- Run | Yrd Mat Min Exi Min Mat Gar Distress Signals 3 | . 3 . . . . . Communications Jammed . | . . . . . . . Distress Signals . | . . . . . . . Times Spotted 60 | . 23 2 . . 3 32 Peak Tracking Total 8 | . 3 2 . . 2 8 Tactical Retreats 3 | . 2 . . . . 1 Traps | -11 -10 -10 -10 -9 -8 -8 ------- Run | Yrd Mat Min Exi Min Mat Gar Traps Triggered 3 | . 1 . . . . 2 Indirectly . | . . . . . . . Trap Hack Attempts . | . . . . . . . Triggered . | . . . . . . . Disarmed . | . . . . . . . Reprogrammed . | . . . . . . . Reused . | . . . . . . . Traps Extracted . | . . . . . . . Installed . | . . . . . . . Triggered . | . . . . . . . Machines | -11 -10 -10 -10 -9 -8 -8 ---------- Run | Yrd Mat Min Exi Min Mat Gar Machines Disabled 6 | . . . . . . 6 Max in Single Turn 2 | . . . . . . 2 Machines Repaired . | . . . . . . . Machines Dismantled . | . . . . . . . Machines Sabotaged . | . . . . . . . Overloaded Fab Kills . | . . . . . . . Hacking | -11 -10 -10 -10 -9 -8 -8 --------- Run | Yrd Mat Min Exi Min Mat Gar Machines Accessed 8 | . 5 . 1 1 1 . Terminals 5 | . 5 . . . . . Fabricators . | . . . . . . . Repair Stations . | . . . . . . . Recycling Units . | . . . . . . . Scanalyzers . | . . . . . . . Garrison Access 1 | . . . . . 1 . Total Hacks 15 | . 12 . 1 1 1 . Successful 13 | . 10 . 1 1 1 . Failed 2 | . 2 . . . . . Catastrophic 1 | . 1 . . . . . Database Lockouts . | . . . . . . . Manual 6 | . 5 . 1 . . . Terminals 12 | . 12 . . . . . Fabricators . | . . . . . . . Repair Stations . | . . . . . . . Recycling Units . | . . . . . . . Scanalyzers . | . . . . . . . Garrison Access 1 | . . . . . 1 . Terminal Hacks 9 | . 7 . 1 1 . . Prototype ID Bank 2 | . 2 . . . . . Open Door 1 | . . . . 1 . . Alert Level 1 | . 1 . . . . . Unreport Threat 1 | . 1 . . . . . Locate Traps 1 | . 1 . . . . . Registered Prototypes 1 | . 1 . . . . . Zone Layout 1 | . 1 . . . . . Derelict Proto ID Bank 1 | . . . 1 . . . Fabricator Hacks . | . . . . . . . Repair Station Hacks . | . . . . . . . Recycling Unit Hacks . | . . . . . . . Scanalyzer . | . . . . . . . Garrison Access Hacks 1 | . . . . . 1 . Unlock Access 1 | . . . . . 1 . Unauthorized Hacks 3 | . 3 . . . . . Terminals 3 | . 3 . . . . . Botnet 3 | . 3 . . . . . Fabricators . | . . . . . . . Repair Stations . | . . . . . . . Recycling Units . | . . . . . . . Scanalyzers . | . . . . . . . Garrison Access . | . . . . . . . Data Cores Recovered 1 | . 1 . . . . . Used . | . . . . . . . Hacking Detections 1 | . 1 . . . . . Full Trace Events 1 | . 1 . . . . . Feedback Events . | . . . . . . . Feedback Blocked . | . . . . . . . Robot Schematics Acquired . | . . . . . . . Robots Built . | . . . . . . . Authchips . | . . . . . . . Time . | . . . . . . . Total Robot Build Rating . | . . . . . . . Part Schematics Acquired . | . . . . . . . Parts Built . | . . . . . . . Authchips . | . . . . . . . Time . | . . . . . . . Total Part Build Rating . | . . . . . . . Parts Repaired . | . . . . . . . Time . | . . . . . . . Parts Recycled . | . . . . . . . Recycled Matter . | . . . . . . . Retrieved Matter . | . . . . . . . Retrieved Components . | . . . . . . . Parts Scanalyzed . | . . . . . . . Part Schematics Acquired . | . . . . . . . Parts Damaged . | . . . . . . . Bothacking | -11 -10 -10 -10 -9 -8 -8 ------------ Run | Yrd Mat Min Exi Min Mat Gar Used RIF Installer . | . . . . . . . Robots Hacked . | . . . . . . . Non-combat . | . . . . . . . Combat . | . . . . . . . Robot Hacks Applied . | . . . . . . . Relay Couplers Released . | . . . . . . . Fabnet Peak Effective % . | . . . . . . . Robots Rewired . | . . . . . . . Allies Hacked . | . . . . . . . Hacks Repelled . | . . . . . . . Allies | -11 -10 -10 -10 -9 -8 -8 -------- Run | Yrd Mat Min Exi Min Mat Gar Total Allies . | . . . . . . . Largest Group . | . . . . . . . Highest-Rated Group . | . . . . . . . Highest-Rated Ally . | . . . . . . . Total Orders . | . . . . . . . Ally Attacks . | . . . . . . . Total Damage . | . . . . . . . Kills . | . . . . . . . Allies Corrupted . | . . . . . . . Allies Melted . | . . . . . . . Intel | -11 -10 -10 -10 -9 -8 -8 ------- Run | Yrd Mat Min Exi Min Mat Gar Robot Analysis Total . | . . . . . . . Derelict Logs Recovered . | . . . . . . . Drone Launches . | . . . . . . . Drone Recoveries . | . . . . . . . Exploration | -11 -10 -10 -10 -9 -8 -8 ------------- Run | Yrd Mat Min Exi Min Mat Gar Turns Passed 4216 | 135 1095 87 515 410 744 1230 Spaces Moved 1910 | 86 618 33 215 165 234 559 Core 11 | 11 . . . . . . Treads 1530 | . 354 33 215 165 234 529 Legs 369 | 75 264 . . . . 30 Wheels . | . . . . . . . Hover . | . . . . . . . Flight . | . . . . . . . Fastest Speed 50 | 50 120 160 240 240 152 120 Average Speed 169 | 111 142 184 240 240 185 153 Slowest Speed 260 | 120 160 240 240 240 240 260 Overloaded Moves . | . . . . . . . Propulsion Burnouts . | . . . . . . . Robots Hopped . | . . . . . . . Cave-ins Triggered . | . . . . . . . Exploration Rate (%) 39 | 6 86 8 60 36 21 61 Regions Visited 6 Branch Regions 3 Pre-discovered Areas . | . . . . . . . Known Exits Taken 1 | . . . . . 1 . Unknown Exits Taken 5 | 1 1 1 1 1 . . Scrap Searched 1 | . . . . 1 . . Spaces Dug 3 | . 2 . . . 1 . Terrain Destroyed 44 | . 2 . . . 1 41 Melee 2 | . 1 . . . 1 . Projectile 7 | . 1 . . . . 6 AOE 35 | . . . . . . 35 Terrain Rammed . | . . . . . . . Walls Destroyed . | . . . . . . . Machines Disabled . | . . . . . . . Actions | -11 -10 -10 -10 -9 -8 -8 --------- Run | Yrd Mat Min Exi Min Mat Gar Total 2596 | 109 736 46 215 175 529 786 Wait 401 | . 42 3 . 8 258 90 Move 1905 | 85 617 32 214 164 234 559 Hop . | . . . . . . . Pick Up 36 | 10 8 . 1 1 9 7 Fast Attach 21 | 4 3 . . . 6 8 Attach 12 | 2 . 1 . . 1 8 Detach 2 | . . 1 . . 1 . Swap 30 | 1 8 2 . . 5 14 Drop 32 | . 12 . . . 8 12 Fire 118 | 7 33 . . . . 78 Melee 29 | . 13 7 . 2 7 . Ram . | . . . . . . . Kick . | . . . . . . . Crush . | . . . . . . . Escape Stasis 10 | . . . . . . 10 Rewire . | . . . . . . . Trap . | . . . . . . . Miscellaneous . | . . . . . . . Route ------- -11/Scrapyard -10/Materials (discovered 5 exits: [*Mat x3] / [*Min x2]) -10/Mines (discovered 2 exits: [*Mat] / *Exi) -10/Exiles -9/Mines -8/Materials -8/Garrison (discovered 3 exits: [*Mat x3]) History --------- Turn | Location | Event 5 | -11/Scrapyard | Discovered new exit (range 15) 136 | -11/Scrapyard | Entered Materials 232 | -10/Materials | Discovered new exit (range 13) 304 | -10/Materials | Build established: Mutant 497 | -10/Materials | Discovered new exit (range 13) 714 | -10/Materials | Discovered new exit (range 8) 968 | -10/Materials | Discovered new exit (range 5) 1156 | -10/Materials | Discovered new exit (range 8) 1231 | -10/Materials | Entered Mines 1252 | -10/Mines | Discovered new exit (range 4) 1309 | -10/Mines | Deemed a non-threat by the Exiles lab entrance 1309 | -10/Mines | Discovered new exit (range 5) 1318 | -10/Mines | Entered Exiles 1378 | -10/Exiles | Met 8R-AWN 1417 | -10/Exiles | Met EX-HEX 1498 | -10/Exiles | Met EX-BIN 1525 | -10/Exiles | Aligned with FarCom system 1527 | -10/Exiles | Given EX-Vault access code 1590 | -10/Exiles | Opened EX-Vault 1604 | -10/Exiles | Found Modified TNC 1651 | -10/Exiles | Warned to stay clear of 0b10 Research branches 1720 | -10/Exiles | Met EX-DEC 1809 | -10/Exiles | Discovered new exit (range 11) 1833 | -10/Exiles | Left Exiles lab with Modified TNC 1833 | -10/Exiles | Entered Mines 1993 | -9/Mines | Found the Drone Emporium 2009 | -9/Mines | Found Prototype Device 2062 | -9/Mines | Discovered new exit (range 5) 2131 | -9/Mines | Assembled infested the area 2243 | -9/Mines | Entered Materials 2243 | -8/Materials | Evolved 4 slots: Propulsion x1, Utility x3 2325 | -8/Materials | Identified Decoy Drone Bay 2401 | -8/Materials | Garrison activated, responded to threat 2667 | -8/Materials | Build established: Gladiator 2987 | -8/Materials | Identified exit to Garrison 2987 | -8/Materials | Entered Garrison 3093 | -8/Garrison | Triggered checkpoint 3230 | -8/Garrison | Triggered checkpoint 3266 | -8/Garrison | Triggered checkpoint 3328 | -8/Garrison | Lost 4 parts (1p3n) 3384 | -8/Garrison | Triggered checkpoint 3591 | -8/Garrison | Discovered new exit (range 8) 3655 | -8/Garrison | Triggered checkpoint 3692 | -8/Garrison | Build established: Scavenger-Mutant 3708 | -8/Garrison | Discovered new exit (range 10) 3742 | -8/Garrison | Triggered checkpoint 3745 | -8/Garrison | Core integrity fell below 50% 3932 | -8/Garrison | Triggered checkpoint 4091 | -8/Garrison | Discovered new exit (range 10) 4155 | -8/Garrison | Spotted B-75 Beast 4217 | -8/Garrison | Core integrity fell below 20% 4217 | -8/Garrison | Destroyed by Y-45 Defender with Beam Rifle Last Messages --------------- 04199_ Y-45 Defender destroyed. 04199_ Switching to secondary target: Y-45 Defender. 04205_ Slug penetrates Wall. 04206_ Lgt. Treads destroyed. 04206_ Lgt. Nuclear Core destroyed. 04209_ Slug penetrates Y-45 Defender. 04209_ Pulse Rifle destroyed. 04211_ Critical hit (Burn: +37). 04212_ Critical hit (Meltdown: +320). 04212_ Lgt. Treads destroyed. 04213_ Slug penetrates Y-45 Defender. 04214_ Overheating: Matter decay (-32). 04214_ Critical hit (Burn: +37). 04215_ Overheating: Hvy. Armor Plating damaged (-19). 04215_ Gauss Rifle destroyed. 04216_ Overheating: System interference. 04216_ Imp. Terrain Scan Processor temporarily disabled. 04216_ Hvy. Armor Plating destroyed. 04217_ Overheating: Core damaged (-82). Map ----- +----------------------------------------------------+ | ????????????????????????????????????????????????? | | ????????????????????????????????????????????????? | | ?????????????????????????????#######????????????? | | ?????????????????????????????# #????????????? | | ?????????????????????????????# < #????????????? | | ?????????????????????????????# #????????????? | | ?????????????????????????????### #????????????? | | ??????????????????##""####?????# #????????????? | | ??????????????????#T ##????# #????????????? | | ???????????????????# #????# #??########??? | | ???????????????????# #????# #??# *!#??? | | ????????????????????? #?????# #??##[ [!!#??? | | ??????????????????????# #??????# #??#[=%[[[#??? | | ??????????????????????# #??????# #??##%!####??? | | ??????????????????????# #??????# #???#[ #?????? | | ???????????????######## ######## #???#* #?????? | | ????????+ /^ #???# ###???? | | ????????+ / #?### #"#???? | | ???????????####+########+;###### #?# "#???? | | ???????????????????????# Y#????# #?# "#???? | | ???????????????????????# #????# #?# "#???? | | ???????????????????????#YY###### #?### #"#???? | | ???????????????????????# =BB + #???# ###???? | | ???????????????????????#YYBB + #???# #?????? | | ??????????????????????## %###### #???# #?????? | | ??????????????????????#!@ [#???# ##### !#####?? | | ??????????????????????#!% [#???# = ! #?? | | ??????????????????????#! %[#???# [=* ! #?? | | ??????????????????????######???# ######### #?? | | ???????????????????????????????# #???????# ### | | ???????????????????????????????# #???????# " | | ???????????????????????????????# #???????# ## | | ???????????????????????????????# #???????#^ ## | | ???????????????????????????????# #???????# ^## | | ???????????????????????????????# #?#######^ # | | ???????????????????????????????# ^^ | | ???????????????????????????????# | | ???????????????????????????????# | | ???????????????????????????????############ # | | ??????????????????????????????????????????# | | ??????????????????????????????????????????" | | ??????????????????????????????????????????" | | ??????????????????????????????????????????" | | ??????????????????????????????????????????" | | ??????????????????????????????????????????# ## | | ??????????????????????????????????????????# ## | | ??????????????????????????????????????????# | | ??????????????????????????????????????????# | | ??????????????????????????????????????????# | | ??????????????????????????????????????????## ## | +----------------------------------------------------+ Best States ------------- Heat Dissipation 31 Energy Generation 14 Energy Capacity 265 Matter Stores 300 Matter Capacity 300 Sight Range 16 Terrain Scan Range 16 Terrain Scan Density 110 Armor Coverage 600 Core Shielding 20 Evasion (%) 55 Melee Accuracy 10 Recoil Reduction 3 Kinecelleration 30 Offensive Hacking 10 Item Schematics ----------------- None Robot Schematics ------------------ None Fabricated ------------ Nothing Alien Tech Used ----------------- None Achievements -------------- None Challenges ------------ None Game ------ Seed NodeSpacefoldRefractor Manual? 0 Play Time 00:26:22 Cumulative 86.4 hours Start 2024.12.02 @ 02:41:54 End 2024.12.02 @ 03:06:21 Sessions 1 Manual Loads 0 Difficulty Rogue Special Mode None Game No. 92 Rogue 92 Adventurer 0 Explorer 0 Win Type - Total 0 Types 0/0/0/0/0/0/0/0/0 Lore% 12 Gallery% 37 Achievement% 33 Wizard Run 0 Options --------- Layout 2 ASCII 0 Keyboard 0 Movement Mouse Keybinds 0 Fullscreen 2 Font 16/SmallcapsGlow Map View 55x47 Zoom Use 0% Tactical HUD 1 Map Filters NONE Filters NONE Steam 1 RUN: 5705f999-0863-46b4-b3dd-39312a768c37